fUST/lending_fUST_20260115
["ID","MTS","AMOUNT","RATE_DAILY","PERIOD"]
[401966995,1768426233120,-1082.1894677,0.00012607,2]
[401966996,1768426233131,-268.37254622,0.00012663,2]
[401966997,1768426233142,-108761.95618836,0.00012719,2]
[401966998,1768426233152,-3038.27490355,0.000129,2]
[401966999,1768426233163,-300.0,0.00012972,2]
[401967000,1768426233174,-300.0,0.00012972,2]
[401967001,1768426233185,-300.0,0.00012972,2]
[401967002,1768426233196,-300.0,0.00012972,2]
[401967003,1768426233208,-300.0,0.00012972,2]
[401967004,1768426233218,-300.0,0.00012972,2]
[401967005,1768426233228,-300.0,0.00012972,2]
[401967006,1768426233239,-300.0,0.00012972,2]
[401967007,1768426233250,-300.0,0.00012972,2]
[401967008,1768426233261,-300.0,0.00012972,2]
[401967009,1768426233271,-300.0,0.00012972,2]
[401967010,1768426233283,-300.0,0.00012972,2]
[401967011,1768426233294,-300.0,0.00012972,2]
[401967012,1768426233304,-300.0,0.00012972,2]
[401967013,1768426233315,-300.0,0.00012972,2]
[401967014,1768426233326,-600.0,0.00012972,2]
[401967015,1768426233337,-500.0,0.00013273,2]
[401967016,1768426233347,-273.38361595,0.00013523,2]
[401967017,1768426233358,-3789.85,0.0001369,2]
[401967018,1768426233369,-165.18985957,0.00013699,2]
[401967019,1768426233380,-1209.87810613,0.00013781,2]
[401967020,1768426233391,-1000.0,0.00013821,2]
[401967021,1768426233402,-720.0,0.00014269,2]
[401967022,1768426233412,-1500.0,0.00014368,2]
[401967023,1768426233423,-21396.72372553,0.00014444,2]
[401967039,1768426238176,-1086.57412159,0.00014444,2]
[401967040,1768426238238,-2215.518836,0.00014444,2]
[401967041,1768426238302,-75301.18331688,0.00014444,2]
[401967042,1768426238312,-316.67960454,0.00014663,2]
[401967043,1768426238321,-624.1243259,0.00014822,2]
[401967044,1768426238331,-2426.8707846,0.00014822,2]
[401967045,1768426238340,-34499.2575645,0.00014822,2]
[401967046,1768426238349,-1743.9608473,0.00014822,2]
[401967047,1768426238358,-595.01188659,0.000149,2]
[401967048,1768426238367,-198.73989319,0.00014916,2]
[401967049,1768426238376,-585.74988374,0.00014954,2]
[401967050,1768426238385,-300.92468939,0.00014968,2]
[401967051,1768426238395,-300000.0,0.00015,2]
[401967052,1768426238404,-1019.00256747,0.00015,2]
[401967053,1768426238414,-33564.60121285,0.00015,2]
[401967054,1768426238423,-1372.43724231,0.00015,3]
[401967055,1768426238432,-151.00724332,0.00015,2]
[401967056,1768426238441,-90995.51759247,0.00015,7]
[401967057,1768426238450,-3038.2749035,0.00015025,2]
[401967058,1768426238459,-235.563767,0.00015068,2]
[401967059,1768426238468,-1209.87810613,0.00015233,3]
[401967060,1768426238478,-864.0,0.00015696,2]
[401967061,1768426238487,-215.88592206,0.00016,2]
[401967062,1768426238497,-500.0,0.00016438,2]
[401967063,1768426238506,-200.0,0.00016438,2]
[401967064,1768426238515,-184.29,0.0001644,2]
[401967065,1768426238524,-184.29,0.0001644,2]
[401967066,1768426238533,-184.29,0.0001644,2]
[401967067,1768426238542,-184.29,0.0001644,2]
[401967068,1768426238552,-364.98666286,0.00016663,2]
[401967069,1768426238561,-1209.87810613,0.00016686,9]
[401967070,1768426238570,-1743.9608473,0.0001678,2]
[401967071,1768426238579,-95477.61285994,0.00017,2]
[401967072,1768426238592,-34499.2575645,0.00017051,2]
[401967073,1768426238602,-624.1243259,0.00017054,2]
[401967074,1768426238612,-2426.8707846,0.00017139,2]
[401967075,1768426238621,-1000.0,0.00017266,2]
[401967076,1768426238631,-201.4141805,0.00017534,2]
[401967077,1768426238640,-2137.48177052,0.000176,2]
[401967078,1768426238650,-3038.2749035,0.00017821,2]
[401967079,1768426238659,-150512.98381193,0.00018,2]
[401967080,1768426238669,-42910.83449574,0.00018,5]
[401967081,1768426238679,-1041.66666667,0.00018107,2]
[401967082,1768426238690,-1209.87810613,0.00018138,14]
[401967083,1768426238700,-300.92468938,0.00018201,2]
[401967084,1768426238709,-235.563767,0.00018493,2]
[401967085,1768426238720,-328.0,0.00018633,2]
[401967086,1768426238731,-413.29372118,0.00018663,2]
[401967087,1768426238741,-215.84582765,0.00018719,2]
[401967088,1768426238751,-500.0,0.00018719,2]
[401967089,1768426238761,-1743.9608473,0.00018738,2]
[401967090,1768426238770,-500.0,0.00018856,2]
[401967091,1768426238779,-231483.25817476,0.000189,5]
[401967092,1768426238789,-339.4792434,0.000189,2]
[401967093,1768426238803,-320.0,0.00018931,2]
[401967094,1768426238813,-580.25700179,0.00018993,2]
[401967095,1768426238824,-1000.0,0.00018993,2]
[401967096,1768426238835,-244.0,0.00018993,2]
[401967097,1768426238845,-2603.49,0.00019,2]
[401967098,1768426238855,-17969.48957745,0.00019,2]
[401967099,1768426238865,-2416.07,0.000192,2]
[401967100,1768426238875,-151.03,0.000192,2]
[401967101,1768426238885,-166.91,0.000192,2]
[401967102,1768426238895,-18273.02,0.000192,2]
[401967103,1768426238905,-500.99801519,0.00019205,5]
[401967104,1768426238915,-34499.2575645,0.00019279,2]
[401967105,1768426238925,-624.1243259,0.00019285,2]
[401967106,1768426238935,-2426.8707846,0.00019457,2]
[401967107,1768426238945,-1209.87810613,0.0001959,20]
[401967108,1768426238955,-250.0,0.00019726,2]
[401967109,1768426238965,-328.0,0.00019879,2]
[401967110,1768426238975,-668.88471487,0.0002,2]
[401967111,1768426238984,-14703.49659754,0.0002,2]
[401967112,1768426238994,-371.66132516,0.0002,2]
[401967113,1768426239004,-6000.89259863,0.0002,2]
[401967114,1768426239014,-163524.2208646,0.0002,7]
[401967115,1768426239024,-804.32909815,0.0002,2]
[401967116,1768426239034,-74737.25492349,0.0002,2]
[401967117,1768426239044,-809.68655087,0.0002,2]
[401967118,1768426239055,-75199.65731769,0.0002,7]
[401967119,1768426239065,-202.7514447,0.0002,2]
[401967120,1768426239075,-504.32904356,0.0002,2]
[401967121,1768426239084,-673.07189375,0.0002,10]
[401967122,1768426239094,-17587.92944107,0.0002,2]
[401967123,1768426239103,-503.71435101,0.0002013,2]
[401967124,1768426239112,-350.0,0.00020274,2]
[401967125,1768426239122,-159.42428313,0.00020295,5]
[401967126,1768426239132,-157.06656927,0.00020295,5]
[401967127,1768426239142,-1389.51235473,0.0002061,2]
[401967128,1768426239151,-3038.2749035,0.00020617,2]
[401967129,1768426239162,-461.6007795,0.00020663,2]
[401967130,1768426239172,-1743.9608473,0.00020696,2]
[401967131,1768426239182,-450.0,0.00020822,2]
[401967132,1768426239191,-1000.0,0.00020892,2]
[401967133,1768426239201,-492.0,0.00020892,2]
[401967134,1768426239211,-256.51440562,0.000209,2]
[401967135,1768426239221,-277.38884084,0.00021,2]
[401967136,1768426239231,-31708.26034418,0.00021,2]
[401967137,1768426239244,-2924.89,0.00021,2]
[401967166,1768426240483,-658.05590408,0.00021,2]
[401967456,1768426246349,-535.01538072,0.00012229,2]
[401967459,1768426255575,1009.81,0.00027397,120]
[401967464,1768426397121,1593.3,0.00024789,120]
[401967465,1768426397354,1593.3,0.00024869,120]
[401967466,1768426397612,1593.3,0.00024869,120]
[401967467,1768426397879,1593.3,0.00024879,120]
[401967468,1768426398132,1593.3,0.00024879,120]
[401967469,1768426398387,1593.3,0.00024889,120]
[401967470,1768426398618,1593.3,0.00024899,120]
[401967471,1768426399037,1593.3,0.00024899,120]
[401967472,1768426399123,1593.3,0.00024899,120]
[401967473,1768426399362,1593.3,0.00024899,120]
[401967474,1768426399584,1593.3,0.00024899,120]
[401967475,1768426400161,1593.3,0.00024899,120]
[401967476,1768426400427,1593.3,0.00024899,120]
[401967477,1768426400655,1593.3,0.00024899,120]
[401967478,1768426400897,1593.3,0.00024899,120]
[401967479,1768426401124,1593.3,0.00024899,120]
[401967480,1768426401376,1593.3,0.00024899,120]
[401967481,1768426401615,1593.3,0.00024899,120]
[401967482,1768426401877,1593.3,0.00024899,120]
[401967483,1768426402102,1593.3,0.00024899,120]
[401967484,1768426402340,1593.3055421,0.00024899,120]
[401967494,1768426455679,9669.7695026,0.00027,120]
[401967495,1768426679766,255.24,4.995e-05,2]
[401967496,1768426802463,155.96,5e-05,2]
[401967497,1768427108493,495.95,0.00027397,120]
[401967499,1768427161687,155.0,5e-05,2]
[401967527,1768427402415,153.27,5e-05,2]
[401967529,1768427403808,153.26,5e-05,2]
[401967588,1768427432553,-155.96,0.000101,2]
[401967589,1768427432563,-562.0,0.000101,2]
[401967590,1768427432572,-364.31430014,0.0001029,2]
[401967591,1768427432581,-186.40824943,0.00010814,2]
[401967592,1768427432590,-300.0,0.00010913,2]
[401967593,1768427432599,-300.0,0.00010913,2]
[401967594,1768427432609,-1200.0,0.00010913,2]
[401967595,1768427432618,-1040.10398434,0.00010914,2]
[401967596,1768427432627,-2140.56811159,0.00010914,2]
[401967597,1768427432639,-1326.0,0.00010914,2]
[401967598,1768427432650,-4604.79029779,0.00010914,2]
[401967599,1768427432661,-997.14197923,0.00010914,2]
[401967600,1768427432680,-40931.49961139,0.00010914,2]
[401967601,1768427432690,-500.0,0.00010914,2]
[401967602,1768427432699,-500.0,0.00010914,2]
[401967604,1768427432708,-500.0,0.00010914,2]
[401967606,1768427432718,-500.0,0.00010914,2]
[401967608,1768427432726,-500.0,0.00010914,2]
[401967610,1768427432735,-500.0,0.00010914,2]
[401967612,1768427432744,-500.0,0.00010914,2]
[401967614,1768427432753,-404.68829637,0.00010914,2]
[401967616,1768427432762,-500.0,0.00010914,2]
[401967618,1768427432771,-500.0,0.00010914,2]
[401967620,1768427432780,-277.23442492,0.00010914,2]
[401967622,1768427432793,-222.76557508,0.00010914,2]
[401967624,1768427432802,-500.0,0.00010914,2]
[401967626,1768427432811,-500.0,0.00010914,2]
[401967628,1768427432820,-500.0,0.00010914,2]
[401967630,1768427432830,-500.0,0.00010914,2]
[401967632,1768427432839,-500.0,0.00010914,2]
[401967634,1768427432848,-500.0,0.00010914,2]
[401967637,1768427432866,-500.0,0.00010914,2]
[401967639,1768427432877,-500.0,0.00010914,2]
[401967641,1768427432887,-500.0,0.00010914,2]
[401967643,1768427432896,-391.68424295,0.00010914,2]
[401967645,1768427432905,-500.0,0.00010914,2]
[401967647,1768427432915,-500.0,0.00010914,2]
[401967649,1768427432924,-500.0,0.00010914,2]
[401967651,1768427432934,-578.46133269,0.00010914,2]
[401967653,1768427432943,-500.0,0.00010914,2]
[401967655,1768427432953,-500.0,0.00010914,2]
[401967657,1768427432963,-500.0,0.00010914,2]
[401967659,1768427432972,-500.0,0.00010914,2]
[401967661,1768427432982,-500.0,0.00010914,2]
[401967662,1768427432991,-500.0,0.00010914,2]
[401967664,1768427433001,-500.0,0.00010914,2]
[401967665,1768427433013,-500.0,0.00010914,2]
[401967666,1768427433023,-500.0,0.00010914,2]
[401967667,1768427433033,-500.0,0.00010914,2]
[401967668,1768427433044,-500.0,0.00010914,2]
[401967669,1768427433055,-500.0,0.00010914,2]
[401967670,1768427433066,-500.0,0.00010914,2]
[401967671,1768427433077,-500.0,0.00010914,2]
[401967672,1768427433089,-500.0,0.00010914,2]
[401967673,1768427433099,-546.641729,0.00010914,2]
[401967674,1768427433110,-500.0,0.00010914,2]
[401967675,1768427433120,-500.0,0.00010914,2]
[401967676,1768427433131,-500.0,0.00010914,2]
[401967677,1768427433141,-500.0,0.00010914,2]
[401967678,1768427433152,-500.0,0.00010914,2]
[401967679,1768427433162,-500.0,0.00010914,2]
[401967680,1768427433172,-500.0,0.00010914,2]
[401967681,1768427433181,-500.0,0.00010914,2]
[401967682,1768427433191,-500.0,0.00010914,2]
[401967683,1768427433200,-500.0,0.00010914,2]
[401967684,1768427433210,-500.0,0.00010914,2]
[401967685,1768427433219,-500.0,0.00010914,2]
[401967686,1768427433229,-190.00307346,0.00010914,2]
[401967687,1768427433238,-500.0,0.00010914,2]
[401967688,1768427433248,-500.0,0.00010914,2]
[401967689,1768427433257,-500.0,0.00010914,2]
[401967690,1768427433268,-500.0,0.00010914,2]
[401967691,1768427433278,-500.0,0.00010914,2]
[401967692,1768427433287,-500.0,0.00010914,2]
[401967693,1768427433296,-500.0,0.00010914,2]
[401967694,1768427433306,-500.0,0.00010914,2]
[401967695,1768427433315,-500.0,0.00010914,2]
[401967696,1768427433324,-500.0,0.00010914,2]
[401967697,1768427433334,-500.0,0.00010914,2]
[401967698,1768427433343,-500.0,0.00010914,2]
[401967699,1768427433355,-500.0,0.00010914,2]
[401967700,1768427433364,-500.0,0.00010914,2]
[401967701,1768427433375,-500.0,0.00010914,2]
[401967702,1768427433385,-500.0,0.00010914,2]
[401967703,1768427433394,-500.0,0.00010914,2]
[401967704,1768427433403,-500.0,0.00010914,2]
[401967705,1768427433412,-456.1519942,0.00010914,2]
[401967706,1768427433423,-16824.51491566,0.00010918,2]
[401967710,1768427438425,-43334.29222514,0.00010918,2]
[401967711,1768427438434,-999.0,0.00010959,2]
[401967712,1768427438444,-1614.653976,0.00010959,2]
[401967713,1768427438453,-10000.0,0.00011221,2]
[401967714,1768427438463,-308.31039139,0.00011276,2]
[401967715,1768427438472,-300.0,0.00011501,2]
[401967716,1768427438481,-300.0,0.00011501,2]
[401967718,1768427438491,-300.0,0.00011501,2]
[401967720,1768427438501,-300.0,0.00011501,2]
[401967721,1768427438510,-300.0,0.00011501,2]
[401967722,1768427438521,-300.0,0.00011501,2]
[401967723,1768427438530,-300.0,0.00011501,2]
[401967724,1768427438540,-300.0,0.00011501,2]
[401967725,1768427438549,-300.0,0.00011501,2]
[401967726,1768427438558,-300.0,0.00011501,2]
[401967727,1768427438568,-300.0,0.00011501,2]
[401967728,1768427438577,-300.0,0.00011501,2]
[401967729,1768427438588,-300.0,0.00011501,2]
[401967730,1768427438597,-300.0,0.00011501,2]
[401967731,1768427438607,-300.0,0.00011501,2]
[401967732,1768427438616,-796.88396938,0.00011824,2]
[401967733,1768427438625,-420.0,0.00011993,2]
[401967734,1768427438635,-853.0,0.00012004,2]
[401967735,1768427438645,-151.0,0.000122,2]
[401967736,1768427438654,-151.0,0.000122,2]
[401967737,1768427438665,-151.0,0.000122,2]
[401967738,1768427438674,-151.0,0.000122,2]
[401967739,1768427438684,-151.0,0.000122,2]
[401967740,1768427438693,-151.0,0.000122,2]
[401967741,1768427438702,-151.0,0.000122,2]
[401967742,1768427438712,-151.0,0.000122,2]
[401967743,1768427438721,-151.0,0.000122,2]
[401967744,1768427438731,-429.89087416,0.0001229,2]
[401967745,1768427438741,-151.0,0.000123,2]
[401967746,1768427438750,-151.0,0.000123,2]
[401967747,1768427438760,-151.0,0.000123,2]
[401967748,1768427438769,-151.0,0.000123,2]
[401967749,1768427438778,-151.0,0.000123,2]
[401967750,1768427438787,-151.0,0.000123,2]
[401967751,1768427438796,-151.0,0.000123,2]
[401967752,1768427438805,-151.0,0.000123,2]
[401967753,1768427438815,-151.0,0.000123,2]
[401967754,1768427438824,-151.0,0.000123,2]
[401967755,1768427438833,-151.0,0.000123,2]
[401967756,1768427438842,-151.0,0.000123,2]
[401967757,1768427438852,-2019.29,0.00012329,2]
[401967758,1768427438862,-6026.35,0.00012329,2]
[401967759,1768427438871,-5021.96,0.00012329,2]
[401967760,1768427438881,-4184.97,0.00012329,2]
[401967761,1768427438891,-3487.47,0.00012329,2]
[401967762,1768427438900,-2906.23,0.00012329,2]
[401967763,1768427438910,-2421.86,0.00012329,2]
[401967764,1768427438919,-2018.21,0.00012329,2]
[401967765,1768427438928,-1681.84,0.00012329,2]
[401967766,1768427438938,-1401.54,0.00012329,2]
[401967767,1768427438947,-1167.95,0.00012329,2]
[401967768,1768427438957,-973.29,0.00012329,2]
[401967769,1768427438966,-811.07,0.00012329,2]
[401967770,1768427438975,-675.9,0.00012329,2]
[401967771,1768427438984,-563.25,0.00012329,2]
[401967772,1768427438995,-500.0,0.00012329,2]
[401967773,1768427439005,-500.0,0.00012329,2]
[401967774,1768427439019,-500.0,0.00012329,2]
[401967775,1768427439029,-500.0,0.00012329,2]
[401967776,1768427439038,-500.0,0.00012329,2]
[401967777,1768427439048,-500.0,0.00012329,2]
[401967778,1768427439058,-500.0,0.00012329,2]
[401967779,1768427439068,-500.0,0.00012329,2]
[401967780,1768427439077,-500.0,0.00012329,2]
[401967781,1768427439086,-500.0,0.00012329,2]
[401967782,1768427439096,-294.74896629,0.00012329,2]
[401967783,1768427439107,-500.0,0.00012329,2]
[401967784,1768427439117,-500.0,0.00012329,2]
[401967785,1768427439127,-500.0,0.00012329,2]
[401967786,1768427439136,-500.0,0.00012329,2]
[401967787,1768427439146,-500.0,0.00012329,2]
[401967788,1768427439156,-500.0,0.00012329,2]
[401967789,1768427439166,-500.0,0.00012329,2]
[401967790,1768427439175,-500.0,0.00012329,2]
[401967791,1768427439186,-500.0,0.00012329,2]
[401967792,1768427439196,-500.0,0.00012329,2]
[401967793,1768427439205,-500.0,0.00012329,2]
[401967794,1768427439215,-500.0,0.00012329,2]
[401967795,1768427439224,-500.0,0.00012329,2]
[401967796,1768427439233,-500.0,0.00012329,2]
[401967797,1768427439242,-500.0,0.00012329,2]
[401967798,1768427439252,-500.0,0.00012329,2]
[401967799,1768427439261,-500.0,0.00012329,2]
[401967800,1768427439270,-500.0,0.00012329,2]
[401967801,1768427439280,-500.0,0.00012329,2]
[401967802,1768427439289,-500.0,0.00012329,2]
[401967803,1768427439298,-500.0,0.00012329,2]
[401967804,1768427439308,-500.0,0.00012329,2]
[401967805,1768427439317,-500.0,0.00012329,2]
[401967806,1768427439327,-500.0,0.00012329,2]
[401967807,1768427439337,-500.0,0.00012329,2]
[401967808,1768427439346,-500.0,0.00012329,2]
[401967809,1768427439356,-1136.52914101,0.00012329,2]
[401967810,1768427439365,-1136.52914101,0.00012329,2]
[401967811,1768427439375,-1136.52914101,0.00012329,2]
[401967812,1768427439384,-1136.52914101,0.00012329,2]
[401967813,1768427439394,-1136.52914101,0.00012329,2]
[401967814,1768427439404,-1136.52914101,0.00012329,2]
[401967815,1768427439413,-1136.52914101,0.00012329,2]
[401967816,1768427439425,-1136.52914101,0.00012329,2]
[401967817,1768427439435,-1136.52914101,0.00012329,2]
[401967818,1768427439444,-1136.52914101,0.00012329,2]
[401967819,1768427439454,-1136.52914101,0.00012329,2]
[401967820,1768427439462,-1136.52914101,0.00012329,2]
[401967821,1768427439471,-1136.52914101,0.00012329,2]
[401967822,1768427439481,-1136.52914101,0.00012329,2]
[401967823,1768427439491,-1136.52914101,0.00012329,2]
[401967824,1768427439500,-1136.52914101,0.00012329,2]
[401967825,1768427439509,-1136.52914101,0.00012329,2]
[401967826,1768427439518,-1136.52914101,0.00012329,2]
[401967827,1768427439527,-1136.52914101,0.00012329,2]
[401967828,1768427439536,-1136.52914101,0.00012329,2]
[401967829,1768427439545,-1136.52914101,0.00012329,2]
[401967830,1768427439554,-1136.52914101,0.00012329,2]
[401967831,1768427439564,-1136.52914101,0.00012329,2]
[401967832,1768427439573,-1136.52914101,0.00012329,2]
[401967833,1768427439583,-1136.52914101,0.00012329,2]
[401967834,1768427439593,-1136.52914101,0.00012329,2]
[401967835,1768427439602,-1136.52914101,0.00012329,2]
[401967836,1768427439613,-1136.52914101,0.00012329,2]
[401967837,1768427439623,-1136.52914101,0.00012329,2]
[401967838,1768427439633,-1136.52914101,0.00012329,2]
[401967839,1768427439642,-1136.52914101,0.00012329,2]
[401967840,1768427439659,-1136.52914101,0.00012329,2]
[401967841,1768427439669,-1136.52914101,0.00012329,2]
[401967842,1768427439679,-1136.52914101,0.00012329,2]
[401967843,1768427439688,-1136.52914101,0.00012329,2]
[401967844,1768427439697,-1136.52914101,0.00012329,2]
[401967845,1768427439708,-1136.52914101,0.00012329,2]
[401967846,1768427439716,-1136.52914101,0.00012329,2]
[401967847,1768427439726,-1136.52914101,0.00012329,2]
[401967848,1768427439736,-1136.52914101,0.00012329,2]
[401967849,1768427439746,-1136.52914101,0.00012329,2]
[401967850,1768427439757,-1136.52914101,0.00012329,2]
[401967851,1768427439766,-1136.52914101,0.00012329,2]
[401967852,1768427439775,-1136.52914101,0.00012329,2]
[401967853,1768427439784,-1136.52914101,0.00012329,2]
[401967854,1768427439793,-1136.52914101,0.00012329,2]
[401967855,1768427439802,-1136.52914101,0.00012329,2]
[401967856,1768427439811,-1136.52914101,0.00012329,2]
[401967857,1768427439820,-1136.52914101,0.00012329,2]
[401967858,1768427439829,-1136.52914101,0.00012329,2]
[401967859,1768427439838,-1136.52914101,0.00012329,2]
[401967860,1768427439847,-1136.52914093,0.00012329,2]
[401967861,1768427439857,-1136.52914093,0.00012329,2]
[401967862,1768427439867,-151.0,0.000124,2]
[401967863,1768427439876,-600.0,0.00012472,2]
[401967864,1768427439886,-151.0,0.000126,2]
[401967865,1768427439895,-151.0,0.000128,2]
[401967866,1768427439905,-10945.40487955,0.000129,2]
[401967867,1768427439914,-151.0,0.00013,2]
[401967868,1768427439924,-222.28,0.000131,2]
[401967869,1768427439933,-222.28,0.000131,2]
[401967870,1768427439943,-150.99,0.000131,2]
[401967872,1768427439952,-587.0,0.0001318,2]
[401967873,1768427439962,-151.0,0.000132,2]
[401967874,1768427439971,-500.0,0.00013273,2]
[401967875,1768427439981,-500.0,0.00013273,2]
[401967876,1768427439990,-500.0,0.00013273,2]
[401967877,1768427439999,-179.89432296,0.00013273,2]
[401967878,1768427440009,-500.0,0.00013273,2]
[401967879,1768427440021,-500.0,0.00013273,2]
[401967880,1768427440030,-500.0,0.00013273,2]
[401967881,1768427440040,-500.0,0.00013273,2]
[401967882,1768427440050,-500.0,0.00013273,2]
[401967883,1768427440061,-500.0,0.00013273,2]
[401967884,1768427440072,-500.0,0.00013273,2]
[401967885,1768427440083,-500.0,0.00013273,2]
[401967886,1768427440096,-500.0,0.00013273,2]
[401967887,1768427440105,-500.0,0.00013273,2]
[401967888,1768427440116,-500.0,0.00013273,2]
[401967889,1768427440126,-500.0,0.00013273,2]
[401967890,1768427440136,-500.21355158,0.00013273,2]
[401967891,1768427440146,-500.0,0.00013273,2]
[401967892,1768427440155,-500.0,0.00013273,2]
[401967893,1768427440165,-500.0,0.00013273,2]
[401967894,1768427440175,-500.0,0.00013273,2]
[401967896,1768427440185,-500.0,0.00013273,2]
[401967897,1768427440195,-500.0,0.00013273,2]
[401967898,1768427440204,-500.0,0.00013273,2]
[401967899,1768427440213,-500.0,0.00013273,2]
[401967900,1768427440222,-397.87367922,0.00013273,2]
[401967902,1768427440232,-500.0,0.00013273,2]
[401967904,1768427440241,-500.36335047,0.00013273,2]
[401967906,1768427440251,-500.0,0.00013273,2]
[401967907,1768427440262,-500.0,0.00013273,2]
[401967908,1768427440271,-500.40591836,0.00013273,2]
[401967909,1768427440282,-500.0,0.00013273,2]
[401967910,1768427440291,-562.21911947,0.00013273,2]
[401967912,1768427440301,-315.55117626,0.00013273,2]
[401967913,1768427440310,-476.24625729,0.00013273,2]
[401967914,1768427440319,-500.0,0.00013273,2]
[401967915,1768427440328,-500.0,0.00013273,2]
[401967916,1768427440337,-500.0,0.00013273,2]
[401967917,1768427440346,-402.84208179,0.00013273,2]
[401967918,1768427440355,-424.36340331,0.00013273,2]
[401967919,1768427440365,-500.0,0.00013273,2]
[401967920,1768427440374,-500.0,0.00013273,2]
[401967921,1768427440383,-500.0,0.00013273,2]
[401967922,1768427440393,-500.0,0.00013273,2]
[401967923,1768427440402,-500.0,0.00013273,2]
[401967924,1768427440411,-619.03226299,0.00013273,2]
[401967925,1768427440419,-500.0,0.00013273,2]
[401967926,1768427440429,-500.0,0.00013273,2]
[401967927,1768427440440,-500.0,0.00013273,2]
[401967928,1768427440450,-344.64451203,0.00013273,2]
[401967929,1768427440459,-500.0,0.00013273,2]
[401967930,1768427440469,-500.0,0.00013273,2]
[401967932,1768427440478,-500.0,0.00013273,2]
[401967934,1768427440486,-500.0,0.00013273,2]
[401967936,1768427440496,-500.0,0.00013273,2]
[401967938,1768427440505,-500.0,0.00013273,2]
[401967940,1768427440514,-500.0,0.00013273,2]
[401967942,1768427440523,-151.0,0.000134,2]
[401967944,1768427440532,-500.0,0.0001341,2]
[401967946,1768427440541,-500.0,0.0001341,2]
[401967948,1768427440550,-500.0,0.0001341,2]
[401967950,1768427440559,-500.0,0.0001341,2]
[401967952,1768427440567,-215.84582765,0.0001341,2]
[401967954,1768427440578,-500.0,0.00013547,2]
[401967956,1768427440587,-500.0,0.00013547,2]
[401967958,1768427440595,-500.0,0.00013547,2]
[401967960,1768427440605,-500.0,0.00013547,2]
[401967962,1768427440614,-151.0,0.000136,2]
[401967964,1768427440622,-300.0,0.00013673,2]
[401967966,1768427440631,-6621.22891409,0.00013675,2]
[401967968,1768427440640,-500.0,0.00013684,2]
[401967970,1768427440649,-500.0,0.00013684,2]
[401967972,1768427440658,-500.0,0.00013684,2]
[401967974,1768427440666,-580.25700179,0.00013684,2]
[401967976,1768427440675,-500.0,0.00013698,2]
[401967977,1768427440684,-500.0,0.00013698,2]
[401967979,1768427440694,-500.0,0.00013698,2]
[401967982,1768427440703,-500.0,0.00013698,2]
[401967983,1768427440712,-282.45018346,0.00013698,2]
[401967985,1768427440721,-567.79,0.00013698,2]
[401967988,1768427440730,-567.79,0.00013698,2]
[401967990,1768427440739,-567.79,0.00013698,2]
[401967992,1768427440748,-567.79,0.00013698,2]
[401967994,1768427440757,-567.79,0.00013698,2]
[401967996,1768427440766,-567.79,0.00013698,2]
[401967998,1768427440775,-500.0,0.00013698,2]
[401968000,1768427440784,-500.0,0.00013698,2]
[401968003,1768427440794,-633.96263391,0.00013698,2]
[401968004,1768427440803,-500.0,0.00013698,2]
[401968007,1768427440812,-582.50112986,0.00013698,2]
[401968008,1768427440823,-500.0,0.00013698,2]
[401968010,1768427440833,-500.0,0.00013698,2]